[Event "Rapid del Mercoledì"]
[Site "Chess.com"]
[Date "2020.06.03"]
[Round "3"]
[White "SanSecondoPR"]
[Black "mr6701"]
[Result "0-1"]
[WhiteElo "1350"]
[BlackElo "1792"]
[TimeControl "720+3"]
[EndTime "12:50:47 PDT"]
[Termination "mr6701 ha vinto per abbandono"]

1. e4 {[%clk 0:12:02.9]} 1... d5 {[%clk 0:12:01.9]} 2. Nf3 {[%clk 0:12:02.6]}
2... dxe4 {[%clk 0:12:04.6]} 3. Ng5 {[%clk 0:12:03.3]} 3... Bf5 {[%clk
0:12:07.2]} 4. Nc3 {[%clk 0:11:49.8]} 4... Nf6 {[%clk 0:12:08.5]} 5. Bc4 {[%clk
0:11:43.9]} 5... e6 {[%clk 0:12:08.7]} 6. O-O {[%clk 0:11:39.8]} 6... h6 {[%clk
0:12:05.2]} 7. Nh3 {[%clk 0:10:58.3]} 7... Bxh3 {[%clk 0:12:06.6]} 8. gxh3
{[%clk 0:10:58.8]} 8... Nc6 {[%clk 0:12:07.5]} 9. d3 {[%clk 0:10:50.1]} 9...
exd3 {[%clk 0:12:06.8]} 10. cxd3 {[%clk 0:10:46.6]} 10... Bc5 {[%clk 0:12:01.3]}
11. Bf4 {[%clk 0:10:27.3]} 11... O-O {[%clk 0:11:35.5]} 12. Kh1 {[%clk
0:10:21.7]} 12... Na5 {[%clk 0:11:23.9]} 13. b3 {[%clk 0:10:07.5]} 13... Qd4
{[%clk 0:11:15.1]} 14. Ne2 {[%clk 0:09:54.4]} 14... Qd7 {[%clk 0:10:30.1]} 15.
Rg1 {[%clk 0:09:13.1]} 15... b5 {[%clk 0:10:22.2]} 16. d4 {[%clk 0:09:09.4]}
16... bxc4 {[%clk 0:09:23.9]} 17. dxc5 {[%clk 0:09:03.4]} 17... Qc6+ {[%clk
0:09:25.1]} 18. Rg2 {[%clk 0:08:50.9]} 18... Ne4 {[%clk 0:09:25.5]} 19. Nd4
{[%clk 0:08:30.9]} 19... Qd5 {[%clk 0:09:07.8]} 20. Bxh6 {[%clk 0:08:23.9]}
20... Nxf2+ {[%clk 0:09:08.4]} 21. Kg1 {[%clk 0:08:06.5]} 21... Nxd1 {[%clk
0:09:10.6]} 22. Bxg7 {[%clk 0:07:42.7]} 22... Qxg2+ {[%clk 0:09:10.8]} 23. Kxg2
{[%clk 0:07:40.8]} 23... Ne3+ {[%clk 0:09:11]} 24. Kf3 {[%clk 0:07:39]} 24...
Kxg7 {[%clk 0:09:09.8]} 25. Kxe3 {[%clk 0:07:39.7]} 25... cxb3 {[%clk
0:09:11.2]} 26. axb3 {[%clk 0:07:35.3]} 26... Nb7 {[%clk 0:09:12.9]} 27. c6
{[%clk 0:07:26]} 27... Nd6 {[%clk 0:09:14]} 28. Rg1+ {[%clk 0:07:15.1]} 28...
Kf6 {[%clk 0:09:13.6]} 29. Rf1+ {[%clk 0:07:13.1]} 29... Ke7 {[%clk 0:09:15.4]}
30. Nb5 {[%clk 0:07:02.4]} 30... Nxb5 {[%clk 0:09:12.4]} 0-1

[Event "Rapid del Mercoledì"]
[Site "Chess.com"]
[Date "2020.06.03"]
[Round "3"]
[White "pedrak"]
[Black "Mrtre7"]
[Result "1-0"]
[WhiteElo "1708"]
[BlackElo "1474"]
[TimeControl "720+3"]
[EndTime "12:59:35 PDT"]
[Termination "pedrak ha vinto per abbandono"]

1. e4 {[%clk 0:11:56.6]} 1... c5 {[%clk 0:12:00.4]} 2. Nf3 {[%clk 0:11:56.2]}
2... g6 {[%clk 0:11:58.9]} 3. d4 {[%clk 0:11:55.3]} 3... cxd4 {[%clk 0:11:59]}
4. Nxd4 {[%clk 0:11:56.7]} 4... Bg7 {[%clk 0:11:57.3]} 5. Be3 {[%clk 0:11:57.4]}
5... Nc6 {[%clk 0:11:59]} 6. c3 {[%clk 0:11:55.7]} 6... d5 {[%clk 0:11:52.4]} 7.
Bb5 {[%clk 0:11:45.4]} 7... Bd7 {[%clk 0:11:15]} 8. exd5 {[%clk 0:11:45.2]} 8...
Ne5 {[%clk 0:11:06.1]} 9. Be2 {[%clk 0:11:29.1]} 9... Nf6 {[%clk 0:11:01.5]} 10.
c4 {[%clk 0:11:26.3]} 10... Rc8 {[%clk 0:11:03]} 11. b3 {[%clk 0:11:26.6]} 11...
O-O {[%clk 0:10:50.2]} 12. O-O {[%clk 0:11:27.5]} 12... Nfg4 {[%clk 0:10:33.2]}
13. Bf4 {[%clk 0:11:00.6]} 13... Qb6 {[%clk 0:09:54.6]} 14. h3 {[%clk
0:10:49.1]} 14... Nh6 {[%clk 0:09:48]} 15. Be3 {[%clk 0:10:43.8]} 15... Qd6
{[%clk 0:09:04.3]} 16. Nc3 {[%clk 0:10:31.5]} 16... Nf5 {[%clk 0:08:38.4]} 17.
Nxf5 {[%clk 0:10:30.4]} 17... Bxf5 {[%clk 0:08:37.1]} 18. Rc1 {[%clk 0:10:20]}
18... Qb4 {[%clk 0:07:54.1]} 19. Bd4 {[%clk 0:10:13.3]} 19... Rfd8 {[%clk
0:07:40]} 20. f4 {[%clk 0:10:03.4]} 20... Nd7 {[%clk 0:06:53.6]} 21. Bxg7 {[%clk
0:10:03.7]} 21... Kxg7 {[%clk 0:06:54.7]} 22. Nb5 {[%clk 0:09:22.6]} 22... e5
{[%clk 0:04:25.2]} 23. fxe5 {[%clk 0:09:15.3]} 23... Nxe5 {[%clk 0:04:27.2]} 24.
Nd4 {[%clk 0:09:16.6]} 24... Qc5 {[%clk 0:04:22.1]} 25. Kh1 {[%clk 0:09:15.8]}
25... Be4 {[%clk 0:04:09.1]} 26. Nf3 {[%clk 0:09:06.2]} 26... Re8 {[%clk
0:03:49.6]} 27. Nxe5 {[%clk 0:09:03.5]} 27... Rxe5 {[%clk 0:03:51.5]} 28. Bf3
{[%clk 0:09:03.8]} 28... Rce8 {[%clk 0:03:19.9]} 29. Bxe4 {[%clk 0:09:01.4]}
29... Rxe4 {[%clk 0:03:21.8]} 30. Qf3 {[%clk 0:09:02.7]} 30... f5 {[%clk
0:03:09.4]} 31. Qc3+ {[%clk 0:09:02.8]} 31... Kg8 {[%clk 0:02:50.3]} 32. b4
{[%clk 0:08:38.3]} 32... Qe3 {[%clk 0:02:42.4]} 33. Qxe3 {[%clk 0:08:35.5]}
33... Rxe3 {[%clk 0:02:44.5]} 34. c5 {[%clk 0:08:37.1]} 34... Rd3 {[%clk
0:02:35.6]} 35. Rfd1 {[%clk 0:08:32.5]} 35... Ree3 {[%clk 0:02:29.4]} 36. d6
{[%clk 0:08:31.2]} 36... Kf8 {[%clk 0:02:29.6]} 37. b5 {[%clk 0:08:29.6]} 37...
Ke8 {[%clk 0:02:29.9]} 38. c6 {[%clk 0:08:30.9]} 38... bxc6 {[%clk 0:02:26.7]}
39. bxc6 {[%clk 0:08:32.4]} 39... Kd8 {[%clk 0:02:13.2]} 40. Rb1 {[%clk
0:08:16.7]} 40... Rxd1+ {[%clk 0:01:57.9]} 41. Rxd1 {[%clk 0:08:17.5]} 41... Rc3
{[%clk 0:01:59.9]} 42. c7+ {[%clk 0:08:16.7]} 42... Kd7 {[%clk 0:02:00.3]} 43.
Rd2 {[%clk 0:08:15.4]} 43... h6 {[%clk 0:01:28.5]} 44. Kg1 {[%clk 0:08:11.6]}
44... a5 {[%clk 0:01:27.5]} 45. Kf2 {[%clk 0:08:12.2]} 45... Ra3 {[%clk
0:01:07.9]} 46. Rc2 {[%clk 0:08:10.7]} 1-0

[Event "Rapid del Mercoledì"]
[Site "Chess.com"]
[Date "2020.06.03"]
[Round "3"]
[White "fausto2p"]
[Black "malberici"]
[Result "1-0"]
[WhiteElo "1211"]
[BlackElo "1296"]
[TimeControl "720+3"]
[EndTime "13:00:28 PDT"]
[Termination "fausto2p ha vinto per abbandono"]

1. d4 {[%clk 0:12:02.9]} 1... Nf6 {[%clk 0:12:00.9]} 2. c4 {[%clk 0:12:03.4]}
2... g6 {[%clk 0:12:01.4]} 3. Nc3 {[%clk 0:12:04.4]} 3... Bg7 {[%clk 0:12:03.3]}
4. e4 {[%clk 0:12:05.4]} 4... O-O {[%clk 0:12:05.6]} 5. e5 {[%clk 0:12:00.5]}
5... Ne8 {[%clk 0:12:06.9]} 6. Nf3 {[%clk 0:11:27.8]} 6... d5 {[%clk 0:12:05.5]}
7. Nxd5 {[%clk 0:11:14.2]} 7... Be6 {[%clk 0:11:57]} 8. Nc3 {[%clk 0:10:24.3]}
8... c6 {[%clk 0:11:43.2]} 9. Bd3 {[%clk 0:10:04.2]} 9... Bg4 {[%clk 0:11:34.9]}
10. h3 {[%clk 0:09:49.2]} 10... Bxf3 {[%clk 0:11:35.2]} 11. Qxf3 {[%clk
0:09:38.1]} 11... Qxd4 {[%clk 0:11:35.3]} 12. O-O {[%clk 0:08:56.1]} 12... Nd7
{[%clk 0:11:26.7]} 13. e6 {[%clk 0:08:03.3]} 13... fxe6 {[%clk 0:11:26.6]} 14.
Qe2 {[%clk 0:07:56.1]} 14... Qf6 {[%clk 0:11:06.9]} 15. Ne4 {[%clk 0:07:22]}
15... Qf7 {[%clk 0:10:31.1]} 16. Ng5 {[%clk 0:07:14.3]} 16... Qf6 {[%clk
0:10:25]} 17. Nxe6 {[%clk 0:06:55.4]} 17... Kh8 {[%clk 0:10:19]} 18. Nxf8 {[%clk
0:06:55]} 18... Nxf8 {[%clk 0:10:13.2]} 19. Rb1 {[%clk 0:06:27.7]} 19... e5
{[%clk 0:10:05.1]} 20. b4 {[%clk 0:06:20.8]} 20... Ne6 {[%clk 0:09:46.7]} 21.
Bb2 {[%clk 0:06:18.1]} 21... Nf4 {[%clk 0:09:30.6]} 22. Qe4 {[%clk 0:05:54.9]}
22... Qg5 {[%clk 0:09:22.2]} 23. Qf3 {[%clk 0:05:40.6]} 23... Nf6 {[%clk
0:09:12.9]} 24. Rfe1 {[%clk 0:05:17.2]} 24... Nxd3 {[%clk 0:08:18.7]} 25. Qxd3
{[%clk 0:05:09.1]} 25... e4 {[%clk 0:08:16.9]} 26. Qg3 {[%clk 0:04:56.4]} 26...
Qf5 {[%clk 0:08:02.9]} 27. Bxf6 {[%clk 0:04:44.1]} 27... Bxf6 {[%clk 0:08:01.9]}
28. Qg4 {[%clk 0:04:29.9]} 28... Qxg4 {[%clk 0:07:26.1]} 29. hxg4 {[%clk
0:04:30.3]} 29... Re8 {[%clk 0:07:25.2]} 30. Rbd1 {[%clk 0:04:27.8]} 30... Bc3
{[%clk 0:07:18.9]} 31. Re2 {[%clk 0:04:25.9]} 31... Bxb4 {[%clk 0:07:12.2]} 32.
Rd4 {[%clk 0:04:18.1]} 32... e3 {[%clk 0:07:06.7]} 33. Rd3 {[%clk 0:04:18.2]}
33... Bc5 {[%clk 0:07:05.8]} 34. Rd7 {[%clk 0:04:15.9]} 34... exf2+ {[%clk
0:06:58.6]} 35. Kf1 {[%clk 0:03:54.4]} 35... Rf8 {[%clk 0:06:27.3]} 36. Rxb7
{[%clk 0:03:46.9]} 36... a5 {[%clk 0:06:20.9]} 37. Rc7 {[%clk 0:03:34.4]} 37...
Bb4 {[%clk 0:06:09.9]} 38. Rxc6 {[%clk 0:03:33.8]} 38... Be1 {[%clk 0:06:09.9]}
39. Rce6 {[%clk 0:03:23.6]} 39... Kg7 {[%clk 0:06:10.1]} 40. Re7+ {[%clk
0:03:16]} 40... Kh6 {[%clk 0:06:08.9]} 41. R7e6 {[%clk 0:03:09.4]} 41... Kg5
{[%clk 0:06:06.1]} 42. Re7 {[%clk 0:02:44.7]} 42... h6 {[%clk 0:06:05]} 43. R7e4
{[%clk 0:02:36.1]} 43... Rf4 {[%clk 0:06:03.6]} 44. Rxf4 {[%clk 0:02:32.5]}
44... Kxf4 {[%clk 0:06:04.6]} 45. c5 {[%clk 0:02:31]} 45... Bb4 {[%clk
0:05:57.6]} 46. c6 {[%clk 0:02:32.3]} 46... Bd6 {[%clk 0:05:58.3]} 47. Rxf2+
{[%clk 0:02:30]} 47... Kxg4 {[%clk 0:05:59.6]} 48. Rf6 {[%clk 0:02:26.2]} 48...
Kg5 {[%clk 0:05:59.7]} 49. Rxd6 {[%clk 0:02:26.9]} 1-0

[Event "Rapid del Mercoledì"]
[Site "Chess.com"]
[Date "2020.06.03"]
[Round "4"]
[White "fausto2p"]
[Black "SanSecondoPR"]
[Result "0-1"]
[WhiteElo "1206"]
[BlackElo "1355"]
[TimeControl "720+3"]
[EndTime "13:14:38 PDT"]
[Termination "SanSecondoPR ha vinto per abbandono"]

1. d4 {[%clk 0:12:02.9]} 1... d5 {[%clk 0:11:58]} 2. c4 {[%clk 0:12:04]} 2... e5
{[%clk 0:11:58.9]} 3. dxe5 {[%clk 0:12:05.8]} 3... d4 {[%clk 0:11:58.6]} 4. a3
{[%clk 0:12:04.3]} 4... Ne7 {[%clk 0:11:56.1]} 5. Nf3 {[%clk 0:12:05]} 5... Nbc6
{[%clk 0:11:54.8]} 6. b4 {[%clk 0:12:03.9]} 6... Bg4 {[%clk 0:11:55.5]} 7. b5
{[%clk 0:11:55.4]} 7... Bxf3 {[%clk 0:11:56.5]} 8. bxc6 {[%clk 0:11:49.6]} 8...
Bxc6 {[%clk 0:11:56.5]} 9. Bb2 {[%clk 0:11:38.5]} 9... Nf5 {[%clk 0:11:37.5]}
10. Qd3 {[%clk 0:11:07.2]} 10... Qd7 {[%clk 0:11:27]} 11. Nd2 {[%clk 0:11:03.6]}
11... O-O-O {[%clk 0:11:18.1]} 12. h3 {[%clk 0:10:30]} 12... h5 {[%clk
0:10:43.4]} 13. Nb3 {[%clk 0:09:41.8]} 13... Qe6 {[%clk 0:10:08.2]} 14. Nc5
{[%clk 0:09:32.1]} 14... Bxc5 {[%clk 0:10:01.5]} 15. h4 {[%clk 0:06:31.3]} 15...
Qxe5 {[%clk 0:09:57.8]} 16. Rh3 {[%clk 0:06:14.4]} 16... Be4 {[%clk 0:09:53.2]}
17. Qd2 {[%clk 0:06:04.3]} 17... Qe8 {[%clk 0:09:36.7]} 18. Qa5 {[%clk
0:05:53.6]} 18... Bb6 {[%clk 0:09:21.9]} 19. Qb4 {[%clk 0:05:41.8]} 19... d3
{[%clk 0:09:16.2]} 20. exd3 {[%clk 0:05:40.3]} 20... Bxd3+ {[%clk 0:09:08.7]}
21. Kd1 {[%clk 0:05:00.5]} 21... Bxf1+ {[%clk 0:09:06.5]} 22. Kc2 {[%clk
0:04:52.5]} 22... Qe2+ {[%clk 0:09:00.8]} 23. Kb3 {[%clk 0:04:46.3]} 23... Rd3+
{[%clk 0:08:47.2]} 24. Rxd3 {[%clk 0:04:44.7]} 24... Qxd3+ {[%clk 0:08:48.1]}
25. Ka4 {[%clk 0:04:40.8]} 25... Qc2+ {[%clk 0:08:36.5]} 26. Kb5 {[%clk
0:04:31.1]} 0-1

[Event "Rapid del Mercoledì"]
[Site "Chess.com"]
[Date "2020.06.03"]
[Round "4"]
[White "mr6701"]
[Black "pedrak"]
[Result "0-1"]
[WhiteElo "1761"]
[BlackElo "1718"]
[TimeControl "720+3"]
[EndTime "13:20:06 PDT"]
[Termination "pedrak ha vinto per abbandono"]

1. e4 {[%clk 0:12:02.9]} 1... d6 {[%clk 0:11:54.3]} 2. d4 {[%clk 0:12:03.9]}
2... e5 {[%clk 0:11:55]} 3. dxe5 {[%clk 0:12:04.2]} 3... dxe5 {[%clk 0:11:56.5]}
4. Qxd8+ {[%clk 0:12:04.2]} 4... Kxd8 {[%clk 0:11:58]} 5. Nc3 {[%clk 0:12:07.1]}
5... c6 {[%clk 0:11:58.9]} 6. f4 {[%clk 0:12:06.3]} 6... Bd6 {[%clk 0:11:49.5]}
7. Nf3 {[%clk 0:12:04.9]} 7... f6 {[%clk 0:11:50.4]} 8. fxe5 {[%clk 0:12:06.7]}
8... Bxe5 {[%clk 0:11:48.3]} 9. Bd2 {[%clk 0:11:53.1]} 9... Be6 {[%clk 0:11:36]}
10. O-O-O {[%clk 0:11:54.7]} 10... Kc7 {[%clk 0:11:37.4]} 11. Na4 {[%clk
0:11:36.6]} 11... Nd7 {[%clk 0:11:37.6]} 12. Nxe5 {[%clk 0:11:33.6]} 12... Nxe5
{[%clk 0:11:37.6]} 13. Nc5 {[%clk 0:11:24.4]} 13... Bg4 {[%clk 0:11:27.5]} 14.
Re1 {[%clk 0:11:16.7]} 14... Rd8 {[%clk 0:11:23.2]} 15. h3 {[%clk 0:11:13.4]}
15... Bc8 {[%clk 0:11:21.2]} 16. Bf4 {[%clk 0:10:55.4]} 16... Ne7 {[%clk
0:11:17.4]} 17. Bc4 {[%clk 0:10:38.1]} 17... Ng6 {[%clk 0:11:15.7]} 18. Bg3
{[%clk 0:10:34.1]} 18... Rhe8 {[%clk 0:11:14.7]} 19. h4 {[%clk 0:09:58.4]} 19...
Kb6 {[%clk 0:11:15.3]} 20. Na4+ {[%clk 0:09:42.8]} 20... Ka5 {[%clk 0:11:09.5]}
21. Bb3 {[%clk 0:09:41.5]} 21... h5 {[%clk 0:10:30.3]} 22. Re3 {[%clk
0:09:28.9]} 22... b5 {[%clk 0:10:19.6]} 23. Be1+ {[%clk 0:08:59.8]} 23... Ka6
{[%clk 0:10:16.6]} 24. Nc5+ {[%clk 0:08:47.4]} 24... Kb6 {[%clk 0:10:15.9]} 25.
Nd3 {[%clk 0:08:45.8]} 25... c5 {[%clk 0:10:02.2]} 26. Nxe5 {[%clk 0:08:39.1]}
26... Nxe5 {[%clk 0:10:02.8]} 27. Bd5 {[%clk 0:08:29]} 27... Ng4 {[%clk
0:09:51.5]} 28. Ra3 {[%clk 0:08:15.8]} 28... b4 {[%clk 0:09:24.4]} 29. Rb3
{[%clk 0:08:13.6]} 29... a5 {[%clk 0:09:15.9]} 30. a3 {[%clk 0:08:07.8]} 30...
a4 {[%clk 0:09:15.2]} 31. Rg3 {[%clk 0:07:59.5]} 31... Kb5 {[%clk 0:08:36.3]}
32. c4+ {[%clk 0:07:39.2]} 32... Ka5 {[%clk 0:08:32.1]} 33. axb4+ {[%clk
0:07:16.5]} 33... cxb4 {[%clk 0:08:32.9]} 34. c5 {[%clk 0:06:51.9]} 34... Kb5
{[%clk 0:08:27.1]} 35. c6 {[%clk 0:06:40.2]} 35... Be6 {[%clk 0:08:02.9]} 36.
Rd3 {[%clk 0:06:24.2]} 36... Ne5 {[%clk 0:07:59]} 37. Rd4 {[%clk 0:06:21.3]}
37... Nxc6 {[%clk 0:06:44.4]} 38. Bxc6+ {[%clk 0:06:18.2]} 38... Kxc6 {[%clk
0:06:45.6]} 39. Rxb4 {[%clk 0:06:19]} 39... Bb3 {[%clk 0:06:46.9]} 40. Bd2
{[%clk 0:06:02.7]} 40... Re5 {[%clk 0:06:27.9]} 41. Rh3 {[%clk 0:06:01.4]} 41...
Rc5+ {[%clk 0:06:19.6]} 42. Rc3 {[%clk 0:05:50.8]} 42... Rxc3+ {[%clk
0:06:14.6]} 43. bxc3 {[%clk 0:05:52.6]} 43... Rd3 {[%clk 0:06:05]} 44. Rd4
{[%clk 0:05:46.5]} 44... Rg3 {[%clk 0:06:00.8]} 45. Rd6+ {[%clk 0:05:06.1]}
45... Kc5 {[%clk 0:05:43.3]} 46. Be3+ {[%clk 0:04:58.8]} 46... Rxe3 {[%clk
0:05:41.5]} 47. Rd7 {[%clk 0:04:57.4]} 47... Rg3 {[%clk 0:05:41.6]} 48. Rc7+
{[%clk 0:04:56.3]} 48... Kd6 {[%clk 0:05:42.9]} 49. Rc8 {[%clk 0:04:53.2]} 49...
Rxg2 {[%clk 0:05:44.2]} 50. Ra8 {[%clk 0:04:48.6]} 50... Ke5 {[%clk 0:05:43.6]}
51. Ra5+ {[%clk 0:04:43.2]} 51... Kxe4 {[%clk 0:05:42.9]} 52. c4 {[%clk
0:04:46.1]} 52... Rc2+ {[%clk 0:05:42.6]} 53. Kb1 {[%clk 0:04:47]} 53... Rxc4
{[%clk 0:05:44.2]} 54. Ra7 {[%clk 0:04:48.8]} 0-1

[Event "Rapid del Mercoledì"]
[Site "Chess.com"]
[Date "2020.06.03"]
[Round "4"]
[White "Mrtre7"]
[Black "sirmale49"]
[Result "1/2-1/2"]
[WhiteElo "1472"]
[BlackElo "1379"]
[TimeControl "720+3"]
[EndTime "13:32:07 PDT"]
[Termination "Patta per materiale insufficiente"]

1. d4 {[%clk 0:12:02.9]} 1... d5 {[%clk 0:12:00.5]} 2. c4 {[%clk 0:11:58]} 2...
e5 {[%clk 0:12:02.2]} 3. dxe5 {[%clk 0:11:56.4]} 3... d4 {[%clk 0:12:04]} 4. Nf3
{[%clk 0:11:56.5]} 4... Nc6 {[%clk 0:12:04.2]} 5. Nbd2 {[%clk 0:11:56.8]} 5...
Bb4 {[%clk 0:12:03.1]} 6. a3 {[%clk 0:11:35.8]} 6... Bxd2+ {[%clk 0:11:55.4]} 7.
Bxd2 {[%clk 0:11:08.7]} 7... Bg4 {[%clk 0:11:56.4]} 8. Bf4 {[%clk 0:11:00.4]}
8... Bxf3 {[%clk 0:11:44.6]} 9. exf3 {[%clk 0:10:59.7]} 9... Nge7 {[%clk
0:11:44.9]} 10. Bd3 {[%clk 0:10:56.9]} 10... Qd7 {[%clk 0:11:26.9]} 11. O-O
{[%clk 0:10:42.5]} 11... O-O-O {[%clk 0:11:18.5]} 12. Re1 {[%clk 0:10:19]} 12...
Nf5 {[%clk 0:11:09.2]} 13. Qc2 {[%clk 0:09:58]} 13... g6 {[%clk 0:10:58.1]} 14.
Bg5 {[%clk 0:07:39.9]} 14... Rde8 {[%clk 0:10:48]} 15. Be4 {[%clk 0:07:08.7]}
15... Nfe7 {[%clk 0:10:21.8]} 16. Bf6 {[%clk 0:07:00.5]} 16... Rhg8 {[%clk
0:10:16]} 17. f4 {[%clk 0:06:59.5]} 17... Nf5 {[%clk 0:10:15]} 18. Rad1 {[%clk
0:06:48.6]} 18... h6 {[%clk 0:08:48.6]} 19. b4 {[%clk 0:06:48.1]} 19... a6
{[%clk 0:08:42.5]} 20. b5 {[%clk 0:06:46.2]} 20... axb5 {[%clk 0:08:35.7]} 21.
cxb5 {[%clk 0:06:32.2]} 21... Na7 {[%clk 0:08:35.4]} 22. b6 {[%clk 0:06:32.8]}
22... Nc6 {[%clk 0:08:32.1]} 23. Qa4 {[%clk 0:05:55.6]} 23... Kb8 {[%clk
0:08:24.6]} 24. Bxc6 {[%clk 0:04:50.3]} 24... Qxc6 {[%clk 0:08:21.2]} 25. Qa7+
{[%clk 0:04:51.5]} 25... Kc8 {[%clk 0:08:19.7]} 26. Qa8+ {[%clk 0:04:53.3]}
26... Kd7 {[%clk 0:08:18.7]} 27. Qa5 {[%clk 0:04:21.5]} 27... Qxb6 {[%clk
0:07:56.3]} 28. Qd5+ {[%clk 0:03:40.2]} 28... Kc8 {[%clk 0:07:41.1]} 29. Rb1
{[%clk 0:03:37.8]} 29... Qc6 {[%clk 0:07:34.5]} 30. Qb3 {[%clk 0:02:58.5]} 30...
Re6 {[%clk 0:07:01.3]} 31. Rec1 {[%clk 0:02:56.6]} 31... Qa6 {[%clk 0:06:44.6]}
32. Qb4 {[%clk 0:01:38.9]} 32... Rc6 {[%clk 0:06:23.1]} 33. Rxc6 {[%clk
0:01:27.7]} 33... Qxc6 {[%clk 0:06:21.7]} 34. Qa5 {[%clk 0:01:26.2]} 34... Kd7
{[%clk 0:06:08.2]} 35. Qb5 {[%clk 0:01:26.4]} 35... Rb8 {[%clk 0:05:40.6]} 36.
Qb3 {[%clk 0:01:08.3]} 36... Qe6 {[%clk 0:05:24.1]} 37. Qb5+ {[%clk 0:01:06.9]}
37... c6 {[%clk 0:05:20]} 38. Qc5 {[%clk 0:01:05]} 38... h5 {[%clk 0:05:05.3]}
39. Rd1 {[%clk 0:01:06.3]} 39... Qd5 {[%clk 0:04:50.8]} 40. Qxd5+ {[%clk
0:01:00.5]} 40... cxd5 {[%clk 0:04:50.2]} 41. h3 {[%clk 0:01:02.3]} 41... Rc8
{[%clk 0:04:44.7]} 42. g4 {[%clk 0:01:03.1]} 42... hxg4 {[%clk 0:04:44.8]} 43.
hxg4 {[%clk 0:01:04.9]} 43... Ne7 {[%clk 0:04:38.6]} 44. Rxd4 {[%clk 0:01:05.7]}
44... Ke6 {[%clk 0:04:33]} 45. Kg2 {[%clk 0:01:03.6]} 45... Nc6 {[%clk
0:04:25.4]} 46. a4 {[%clk 0:00:49.6]} 46... Ra8 {[%clk 0:04:19.6]} 47. Rd1
{[%clk 0:00:40.1]} 47... Rxa4 {[%clk 0:03:42.6]} 48. Kf3 {[%clk 0:00:41.9]}
48... b5 {[%clk 0:03:36.3]} 49. Rc1 {[%clk 0:00:40.7]} 49... Nd4+ {[%clk
0:03:27]} 50. Ke3 {[%clk 0:00:40.1]} 50... Nb3 {[%clk 0:02:58.6]} 51. Rc6+
{[%clk 0:00:41.1]} 51... Kd7 {[%clk 0:02:59.3]} 52. Rd6+ {[%clk 0:00:40.3]}
52... Kc7 {[%clk 0:02:44.4]} 53. Rxd5 {[%clk 0:00:42.3]} 53... Kc6 {[%clk
0:02:27.6]} 54. Rd6+ {[%clk 0:00:37.7]} 54... Kc7 {[%clk 0:02:24.5]} 55. Bd8+
{[%clk 0:00:32.9]} 55... Kc8 {[%clk 0:02:21.1]} 56. Bb6 {[%clk 0:00:30.4]} 56...
Kb7 {[%clk 0:02:11.4]} 57. Rf6 {[%clk 0:00:29.1]} 57... Ra6 {[%clk 0:01:50.7]}
58. Bd8 {[%clk 0:00:29.6]} 58... Rxf6 {[%clk 0:01:50.1]} 59. Bxf6 {[%clk
0:00:29.7]} 59... Nc5 {[%clk 0:01:48.9]} 60. Be7 {[%clk 0:00:26.2]} 60... Ne6
{[%clk 0:01:43.6]} 61. f5 {[%clk 0:00:23.6]} 61... gxf5 {[%clk 0:01:43.8]} 62.
gxf5 {[%clk 0:00:25.6]} 62... Nc7 {[%clk 0:01:41.7]} 63. Kd4 {[%clk 0:00:21]}
63... Kc6 {[%clk 0:01:38.8]} 64. f4 {[%clk 0:00:18]} 64... Nd5 {[%clk
0:01:30.8]} 65. Bd6 {[%clk 0:00:19.5]} 65... Nxf4 {[%clk 0:01:27.7]} 66. Ke4
{[%clk 0:00:21.5]} 66... Nd5 {[%clk 0:01:27.3]} 67. Kd4 {[%clk 0:00:22.6]} 67...
b4 {[%clk 0:01:07.4]} 68. Kc4 {[%clk 0:00:19.3]} 68... Ne3+ {[%clk 0:01:08.4]}
69. Kxb4 {[%clk 0:00:14.4]} 69... Nxf5 {[%clk 0:01:09.2]} 70. Bb8 {[%clk
0:00:12.1]} 70... Kd5 {[%clk 0:01:09.8]} 71. Kc3 {[%clk 0:00:10.5]} 71... Ke6
{[%clk 0:01:09.6]} 72. Kd3 {[%clk 0:00:11.8]} 72... Ne7 {[%clk 0:01:10]} 73. Ke4
{[%clk 0:00:13.6]} 73... Nc6 {[%clk 0:01:06.9]} 74. Bd6 {[%clk 0:00:15.5]} 74...
Nd8 {[%clk 0:01:01.9]} 75. Bc7 {[%clk 0:00:17]} 75... Nb7 {[%clk 0:01:01]} 76.
Bb8 {[%clk 0:00:18.5]} 76... Nc5+ {[%clk 0:00:59.9]} 77. Kd4 {[%clk 0:00:20.6]}
77... Nd7 {[%clk 0:01:00.5]} 78. Bd6 {[%clk 0:00:21]} 78... f6 {[%clk
0:00:57.6]} 79. exf6 {[%clk 0:00:17.9]} 79... Nxf6 {[%clk 0:00:58.3]} 1/2-1/2